bitfinex/quotes_ETHUSD_20260226
["timestamp","ask_amount","ask_price","bid_price","bid_amount"]
[1772080079063,1.58139229,2066.8,2066.4,3.36366004]
[1772080080641,1.58139229,2066.8,2066.5,1.60689339]
[1772080080841,1.58139229,2066.8,2066.4,1.64636039]
[1772080081057,1.58139229,2066.7,2066.4,1.64736039]
[1772080081254,0.002,2066.6,2066.4,1.64736039]
[1772080082067,1.58339229,2066.6,2066.4,1.352]
[1772080084076,0.002,2066.6,2066.4,1.352]
[1772080085281,0.002,2066.6,2066.4,4.46408468]
[1772080085585,0.002,2066.6,2066.4,3.25425378]
[1772080087358,0.002,2066.6,2066.4,2.95889339]
[1772080088774,1.21160005,2066.8,2066.5,1.60689339]
[1772080088775,0.002,2066.8,2066.5,1.60689339]
[1772080089747,0.002,2066.9,2066.7,1.60689339]
[1772080089948,1.58339229,2067.1,2066.7,1.60689339]
[1772080093073,1.58339229,2067.1,2066.8,1.60689339]
[1772080093248,0.002,2067.1,2066.9,1.60689339]
[1772080094673,0.002,2067.1,2066.8,0.44307048]
[1772080094880,1.58139229,2067.0,2066.7,1.362]
[1772080095175,0.002,2067.1,2066.8,2.04996387]
[1772080095380,0.002,2067.1,2066.9,1.60689339]
[1772080097359,0.002,2067.1,2066.8,2.04996387]
[1772080098476,0.002,2067.1,2066.8,1.60689339]
[1772080098681,1.58339229,2067.1,2066.8,1.60689339]
[1772080105288,1.58139229,2067.0,2066.7,1.362]
[1772080105464,0.002,2066.9,2066.7,1.362]
[1772080105665,0.002,2066.9,2066.8,0.001]
[1772080106692,1.70920522,2066.9,2066.8,0.001]
[1772080107992,0.002,2066.9,2066.8,0.001]
[1772080108196,1.70720522,2067.3,2066.9,1.6558871]
[1772080108560,11.63914025,2067.8,2066.8,0.44407048]
[1772080108561,1.70720522,2067.9,2067.3,1.6558871]
[1772080110863,1.20901441,2067.8,2067.3,1.6558871]
[1772080111064,1.70720522,2067.7,2067.3,1.6558871]
[1772080112875,1.64720522,2067.7,2067.3,1.6558871]
[1772080113890,1.20901441,2067.8,2067.3,1.6558871]
[1772080114097,1.69905187,2067.8,2067.4,1.62319533]
[1772080115923,1.69905187,2067.7,2067.2,1.368]
[1772080116269,1.69905187,2067.7,2067.3,1.62319533]
[1772080117802,1.69905187,2067.7,2067.2,1.368]
[1772080118800,1.69905187,2067.5,2067.4,0.001]
[1772080119101,1.70105187,2067.5,2067.4,0.001]
[1772080119811,2.91017092,2067.7,2067.4,0.001]
[1772080120006,1.69905187,2067.6,2067.4,0.001]
[1772080120204,1.69905187,2067.6,2067.2,1.368]
[1772080120904,1.69905187,2067.5,2067.2,1.368]
[1772080121995,1.69905187,2067.5,2067.2,2.99119533]
[1772080122528,1.20913209,2067.6,2067.3,1.62319533]
[1772080122706,0.002,2067.7,2067.3,1.62319533]
[1772080123023,1.70105187,2067.7,2067.3,1.62319533]
[1772080125027,2.9101354,2067.7,2067.3,1.62319533]
[1772080126031,1.70105187,2067.7,2067.4,1.62319533]
[1772080126797,1.69905187,2067.7,2067.4,1.62319533]
[1772080129513,1.69905187,2067.6,2067.3,1.62319533]
[1772080130842,1.20907521,2067.7,2067.3,1.62319533]
[1772080130843,1.69905187,2067.8,2067.3,1.62319533]
[1772080131038,1.69905187,2067.8,2067.4,1.62319533]
[1772080132347,1.69905187,2067.7,2067.4,1.62319533]
[1772080132636,1.81,2068.0,2067.2,3.02039878]
[1772080132637,1.69905187,2068.0,2067.7,1.62319533]
[1772080133317,0.002,2067.8,2067.7,1.62319533]
[1772080133843,1.69905187,2068.0,2067.7,1.62319533]
[1772080134442,2.90797605,2068.0,2067.7,1.62319533]
[1772080134814,1.69905187,2067.9,2067.6,0.001]
[1772080135317,1.20892418,2068.0,2067.6,1.62419533]
[1772080135318,2.9079813,2068.0,2067.6,1.62419533]
[1772080135519,1.20892943,2068.0,2067.6,1.62419533]
[1772080135748,2.9079813,2068.0,2067.6,1.62419533]
[1772080136150,1.69905187,2068.0,2067.7,1.62586415]
[1772080139261,1.69905187,2068.0,2067.7,2.83492681]
[1772080140751,1.69905187,2068.0,2067.7,1.62586415]
[1772080141144,1.69905187,2068.0,2067.6,1.62686415]
[1772080144850,1.69905187,2068.0,2067.7,1.62586415]
[1772080147361,1.69905187,2068.0,2067.8,0.001]
[1772080148047,1.70105187,2068.0,2067.8,0.001]
[1772080149360,1.70105187,2068.0,2067.6,0.001]
[1772080149361,1.66003469,2067.9,2067.6,0.001]
[1772080149857,1.66003469,2067.6,2066.9,0.001]
[1772080150043,1.66003469,2067.4,2067.0,1.62586415]
[1772080151131,1.66003469,2067.4,2066.9,1.62686415]
[1772080151452,1.66003469,2067.2,2066.9,0.001]
[1772080153436,1.66003469,2067.0,2066.9,0.001]
[1772080155565,1.66003469,2067.2,2066.9,0.001]
[1772080157562,1.66003469,2067.1,2066.9,0.001]
[1772080158243,1.66003469,2067.1,2066.8,0.001]
[1772080159637,1.66003469,2067.1,2066.8,1.62686415]
[1772080160049,1.66003469,2067.2,2066.8,1.92189966]
[1772080161066,1.66003469,2067.2,2067.1,0.001]
[1772080162065,2.86940001,2067.2,2067.1,0.001]
[1772080162242,2.86940001,2067.2,2066.9,0.001]
[1772080162243,1.66003469,2067.1,2066.9,0.001]
[1772080163437,1.66003469,2067.1,2066.6,0.30603551]
[1772080163438,1.66003469,2066.8,2066.6,0.011]
[1772080163641,1.66003469,2067.0,2066.6,1.63686415]
[1772080164266,1.66003469,2066.9,2066.6,1.63686415]
[1772080165251,1.66003469,2067.0,2066.6,1.63686415]
[1772080165561,3.49103469,2067.1,2066.7,1.62586415]
[1772080167046,3.49103469,2067.1,2066.7,1.92089966]
[1772080167474,2.80744737,2067.3,2066.8,1.61376123]
[1772080167674,1.59811529,2067.2,2066.8,1.61376123]
[1772080168652,1.59811529,2067.2,2066.8,1.90879674]
[1772080168853,1.833,2067.4,2067.1,1.61376123]
[1772080169262,2.80733383,2067.5,2067.1,1.61376123]
[1772080170468,1.59811529,2067.5,2067.1,1.61376123]
[1772080170655,1.59811529,2067.6,2067.1,1.61376123]
[1772080171873,1.8931508,2067.6,2067.1,1.61376123]
[1772080172652,1.20918984,2067.5,2067.1,1.61376123]
[1772080172853,2.8224618,2067.5,2067.1,1.61376123]
[1772080173179,1.20917125,2067.6,2067.1,1.61376123]
[1772080173378,2.82244321,2067.6,2067.1,1.61376123]
[1772080173562,1.61327196,2067.5,2067.1,1.61376123]
[1772080173762,0.002,2067.2,2067.1,1.61376123]
[1772080175787,0.002,2067.2,2067.1,2.82318506]
[1772080176090,0.002,2067.5,2067.2,1.67472431]
[1772080178366,0.002,2067.5,2067.3,1.67472431]
[1772080178768,1.61527196,2067.8,2067.3,1.67472431]
[1772080179078,1.61527196,2067.8,2067.3,2.8840212]
[1772080179280,1.61327196,2067.7,2067.2,3.17910072]
[1772080179485,1.61327196,2067.7,2067.0,1.97075982]
[1772080179659,1.61327196,2067.7,2067.1,1.67472431]
[1772080181086,1.61327196,2067.7,2067.3,1.67472431]
[1772080181274,1.61327196,2067.7,2067.2,1.96975982]
[1772080181586,1.61327196,2067.6,2067.0,3.05172431]
[1772080181980,1.61327196,2067.6,2067.0,4.26119844]
[1772080182566,1.61327196,2067.6,2067.0,4.55623395]
[1772080183517,1.61327196,2067.5,2067.0,4.55623395]
[1772080184890,1.61327196,2067.5,2067.1,1.67472431]
[1772080185698,1.61327196,2067.5,2067.1,2.88412217]
[1772080186093,0.002,2067.4,2067.1,2.88412217]
[1772080186394,1.61527196,2067.4,2067.1,2.88412217]
[1772080187402,1.61527196,2067.6,2067.2,1.67472431]
[1772080187790,1.61527196,2067.6,2067.2,2.88405094]
[1772080189198,1.61527196,2067.6,2067.2,1.67472431]
[1772080189571,1.61327196,2067.5,2067.2,1.67472431]
[1772080190076,1.61327196,2067.7,2067.1,2.88414597]
[1772080190275,1.61327196,2067.6,2067.1,2.88414597]
[1772080191407,0.002,2067.8,2067.2,1.96975982]
[1772080191582,1.61527196,2067.8,2067.2,1.96975982]
[1772080192304,1.61527196,2067.8,2067.3,1.20930682]
[1772080192604,1.61527196,2067.8,2067.3,2.88403113]
[1772080192799,1.61527196,2067.8,2067.4,1.67472431]
[1772080195900,1.55527196,2067.8,2067.4,2.88396537]
[1772080196402,1.55527196,2067.8,2067.4,1.65395813]
[1772080197419,1.57133991,2067.7,2067.2,3.1583141]
[1772080197801,1.57133991,2067.7,2067.3,1.65395813]
[1772080197997,1.57133991,2067.7,2067.1,1.65395813]
[1772080198200,1.57133991,2067.7,2067.3,0.001]
[1772080198606,1.57133991,2067.5,2067.3,0.001]
[1772080199697,0.002,2067.6,2067.3,1.65495813]
[1772080200197,1.57333991,2067.6,2067.3,1.65495813]
[1772080200525,1.57333991,2067.6,2067.3,0.001]
[1772080202024,1.57133991,2067.5,2067.3,0.001]
[1772080202199,1.57133991,2067.5,2067.0,0.001]
[1772080202717,1.57133991,2067.5,2067.0,1.65495813]
[1772080203022,1.57133991,2067.5,2067.0,0.001]
[1772080203429,1.57133991,2067.2,2067.0,0.001]
[1772080204117,1.20937055,2067.2,2067.0,0.001]
[1772080204294,1.57133991,2067.1,2067.0,0.001]
[1772080206499,1.57133991,2067.3,2067.0,0.001]
[1772080210737,1.838,2067.4,2067.0,1.65495813]
[1772080211023,1.57133991,2067.5,2067.2,0.001]
[1772080211202,0.002,2067.3,2067.2,0.001]
[1772080212234,0.002,2067.3,2067.2,1.65495813]
[1772080213124,0.002,2067.5,2067.3,1.65395813]
[1772080214828,0.002,2067.5,2067.4,2.86320646]
[1772080215152,0.002,2067.6,2067.4,1.20924833]
[1772080215435,0.002,2067.8,2067.6,1.65395813]
[1772080216816,1.57133991,2067.7,2067.2,2.86428683]
[1772080217132,0.002,2067.8,2067.3,1.65395813]
[1772080217323,1.57333991,2067.8,2067.3,1.65395813]
[1772080219626,2.78235708,2067.8,2067.4,1.65395813]
[1772080219825,1.57333991,2067.8,2067.4,1.65395813]
[1772080221229,0.002,2067.8,2067.4,1.65395813]
[1772080221723,0.002,2067.8,2067.5,2.86314797]
[1772080223813,0.002,2067.8,2067.6,1.65395813]
[1772080224436,0.002,2067.8,2067.5,1.65495813]
[1772080225913,0.002,2067.8,2067.6,1.20913136]
[1772080227531,0.002,2067.8,2067.7,1.59904751]
[1772080227724,0.002,2068.1,2067.8,1.59904751]
[1772080227921,0.002,2068.1,2067.9,1.20895594]
[1772080228340,12.03294209,2068.4,2068.0,1.59904751]
[1772080228523,1.67294209,2068.4,2068.0,1.59904751]
[1772080229849,2.88141854,2068.8,2068.2,1.59904751]
[1772080230149,1.67294209,2068.7,2068.2,1.59904751]
[1772080230815,1.67294209,2068.4,2067.7,1.59904751]
[1772080231921,1.2084324,2068.8,2068.3,1.59904751]
[1772080231922,2.88141307,2068.8,2068.3,1.59904751]
[1772080232132,1.67294209,2068.7,2068.3,1.59904751]
[1772080232931,1.67294209,2068.7,2068.1,1.59904751]
[1772080233829,1.69988473,2068.9,2068.3,1.61765456]
[1772080234025,1.69988473,2068.8,2068.3,1.61765456]
[1772080236131,1.69988473,2068.7,2068.3,1.61765456]
[1772080236331,1.69988473,2068.7,2068.1,3.26936485]
[1772080236560,1.69988473,2068.7,2068.1,1.65171029]
[1772080236754,1.69988473,2068.7,2068.2,1.61765456]
[1772080237326,1.69988473,2068.7,2068.4,0.001]
[1772080237656,0.002,2068.5,2068.4,1.61865456]
[1772080239835,1.69988473,2069.0,2068.5,1.61765456]
[1772080240239,1.69988473,2069.0,2068.4,1.61865456]
[1772080240438,1.69988473,2069.0,2068.4,2.82731454]
[1772080241038,1.69988473,2069.0,2068.4,2.82731404]
[1772080241262,1.69988473,2069.0,2068.4,0.001]
[1772080241585,1.69988473,2068.7,2068.1,0.001]
[1772080241747,1.69988473,2068.7,2068.1,1.61965456]
[1772080241952,1.69988473,2068.7,2068.1,2.82847676]
[1772080242271,1.69988473,2068.6,2068.2,1.61765456]
[1772080242443,1.69988473,2068.6,2068.1,0.002]
[1772080242767,1.69988473,2068.6,2068.1,2.82849341]
[1772080243139,1.2085118,2068.7,2068.2,1.61765456]
[1772080243140,1.69988473,2068.7,2068.2,1.61765456]
[1772080243338,1.69988473,2068.7,2068.1,0.002]
[1772080244054,1.69988473,2068.7,2068.1,2.82849098]
[1772080244454,1.20854684,2068.6,2068.1,1.61965456]
[1772080244768,1.69988473,2068.5,2068.1,1.61965456]
[1772080245267,1.69988473,2068.6,2068.1,1.61965456]
[1772080245764,1.69988473,2068.6,2068.2,1.61765456]
[1772080245937,1.20843,2068.8,2068.2,1.61765456]
[1772080246135,1.69988473,2068.7,2068.3,0.001]
[1772080246568,1.20854684,2068.6,2068.3,0.001]
[1772080246770,2.90843157,2068.6,2068.3,0.001]
[1772080247067,1.69988473,2068.6,2068.3,0.001]
[1772080247243,1.69988473,2068.7,2068.3,1.61865456]
[1772080248445,1.69988473,2068.9,2068.3,1.61865456]
[1772080248773,1.69988473,2069.0,2068.6,1.61765456]
[1772080249182,1.69988473,2069.0,2068.6,1.61865456]
[1772080249739,0.44290581,2069.0,2068.6,0.001]
[1772080249963,1.69988473,2068.9,2068.6,0.001]
[1772080250144,1.69988473,2068.7,2068.2,1.397]
[1772080250353,1.69988473,2068.7,2068.2,2.60577767]
[1772080250549,1.69988473,2068.7,2068.2,1.397]
[1772080251278,1.69988473,2068.6,2068.2,3.01465456]
[1772080251870,1.69988473,2068.6,2068.5,0.001]
[1772080255185,2.90843157,2068.6,2068.5,0.001]
[1772080255472,2.90843157,2068.6,2068.3,0.001]
[1772080255473,1.69988473,2068.5,2068.3,0.001]
[1772080255686,2.91041908,2068.7,2068.2,1.61765456]
[1772080255879,1.60566429,2068.6,2068.2,1.61765456]
[1772080257478,2.81421673,2068.6,2068.2,1.61765456]
[1772080257773,2.81421154,2068.6,2068.2,1.61765456]
[1772080257980,1.60566429,2068.6,2068.2,1.61765456]
[1772080260273,0.002,2068.7,2068.3,1.59635471]
[1772080260664,0.002,2068.7,2068.5,1.59635471]
[1772080260867,1.60566429,2068.6,2068.2,1.59635471]
[1772080261073,1.60566429,2068.6,2068.2,2.80513223]
[1772080261277,1.60566429,2068.6,2068.3,1.59635471]
[1772080261584,0.002,2068.7,2068.5,1.59635471]
[1772080261955,0.002,2068.7,2068.5,2.80495484]
[1772080262280,1.21128686,2069.1,2068.7,1.59635471]
[1772080262281,0.003,2069.1,2068.7,1.59635471]
[1772080262481,24.0531231,2070.0,2068.6,0.44290581]
[1772080262482,1.60566429,2069.9,2069.1,1.59635471]
[1772080262659,1.60566429,2069.9,2069.2,1.59635471]
[1772080262860,1.60566429,2069.9,2069.1,1.398]
[1772080262861,1.60566429,2070.6,2069.8,1.59635471]
[1772080263061,1.2104379,2070.5,2069.9,3.43726052]
[1772080263383,1.2104379,2070.5,2069.9,2.99435471]
[1772080263384,2.81611166,2070.5,2069.9,2.99435471]
[1772080263685,1.60566429,2070.4,2069.9,1.398]
[1772080263885,1.21044737,2070.5,2069.9,1.398]
[1772080263886,0.003,2070.5,2070.0,1.59635471]
[1772080264059,0.003,2070.5,2070.1,2.03926052]
[1772080265009,1.60566429,2070.4,2069.7,1.59635471]
[1772080265794,1.60566429,2070.4,2069.5,2.99435471]
[1772080266111,2.81320356,2070.4,2069.6,1.59635471]
[1772080266589,1.60566429,2070.3,2069.6,1.59635471]
[1772080267587,0.002,2070.2,2069.6,1.59635471]
[1772080267964,0.002,2070.2,2069.7,1.20790452]
[1772080268169,0.002,2070.2,2069.8,1.59635471]
[1772080269165,0.002,2070.2,2069.8,1.54243191]
[1772080269985,0.002,2070.2,2069.6,1.59635471]
[1772080270806,0.002,2070.2,2069.7,1.59635471]
[1772080271907,0.002,2070.4,2069.9,1.59635471]
[1772080272406,0.002,2070.4,2070.1,1.59635471]
[1772080272715,0.003,2070.5,2070.2,1.59635471]
[1772080274293,0.003,2070.5,2070.3,2.80390917]
[1772080274913,2.81278339,2071.1,2070.4,1.59635471]
[1772080276419,2.81278339,2071.1,2070.2,4.83044993]
[1772080276420,1.60566429,2071.0,2070.2,1.59635471]
[1772080277487,1.2071191,2071.1,2070.4,1.59635471]
[1772080277816,2.81278339,2071.1,2070.4,1.59635471]
[1772080278005,2.97427879,2071.3,2070.4,1.59635471]
[1772080279084,1.60566429,2071.2,2070.3,4.20286768]
[1772080279282,1.60566429,2071.2,2070.4,1.59635471]
[1772080280206,1.3686145,2071.3,2070.4,1.59635471]
[1772080280421,1.60566429,2071.2,2070.4,1.59635471]
[1772080281384,2.81273931,2071.2,2070.6,1.59635471]
[1772080281587,2.81273931,2071.2,2070.2,1.59635471]
[1772080281588,1.60566429,2071.1,2070.2,1.59635471]
[1772080281784,1.60566429,2071.1,2070.4,1.59635471]
[1772080282515,1.20707502,2071.2,2070.4,1.59735471]
[1772080282686,0.002,2071.0,2070.4,1.59735471]
[1772080283787,0.002,2071.0,2070.6,1.59635471]
[1772080285109,1.20974764,2071.7,2070.9,1.59635471]
[1772080285406,0.003,2071.7,2071.1,1.59635471]
[1772080285605,1.20974528,2071.7,2071.1,1.59635471]
[1772080285806,2.81540957,2071.7,2071.1,2.80344272]
[1772080285987,2.81540957,2071.7,2071.1,1.59635471]
[1772080287196,2.81540957,2071.7,2071.1,2.80343457]
[1772080287420,2.81540957,2071.7,2071.1,1.59635471]
[1772080287623,1.6898319,2071.6,2071.1,1.398]
[1772080287796,1.6898319,2071.6,2070.9,2.97631357]
[1772080288117,2.89668683,2071.5,2070.9,2.97631357]
[1772080289011,1.20978181,2071.7,2071.0,1.57831357]
[1772080290417,0.003,2071.7,2071.1,1.57831357]
[1772080290809,1.6928319,2071.7,2070.9,2.97631357]
[1772080291015,1.6928319,2071.7,2070.8,1.398]
[1772080291718,1.6928319,2071.7,2070.8,2.97631357]
[1772080292412,1.6898319,2071.5,2070.8,2.97631357]
[1772080293118,1.6898319,2071.5,2070.7,1.397]
[1772080294414,1.67642591,2071.3,2070.5,1.20740521]
[1772080294615,1.67642591,2071.3,2070.6,1.70153029]
[1772080294818,1.67642591,2071.3,2070.4,0.001]
[1772080295917,1.67642591,2071.3,2070.5,1.70153029]
[1772080296429,1.67642591,2071.1,2071.0,0.001]
[1772080297121,1.67642591,2071.1,2070.5,1.70153029]
[1772080297895,1.67642591,2071.1,2070.4,0.001]
[1772080298094,1.67642591,2071.1,2070.4,1.70253029]
[1772080298291,1.20702974,2071.2,2070.5,1.70153029]
[1772080298921,2.88345565,2071.2,2070.5,1.70153029]
[1772080301428,2.88345565,2071.2,2070.6,1.70153029]
[1772080302607,1.20702974,2071.2,2070.6,1.70153029]
[1772080303194,6.50654487,2071.3,2070.7,1.99566843]
[1772080303593,2.88539737,2071.3,2070.7,1.99566843]
[1772080305993,2.88539737,2071.3,2070.7,3.20297939]
[1772080306198,2.88539737,2071.3,2070.7,1.99566843]
[1772080306426,2.88539737,2071.3,2070.7,3.20297452]
[1772080306628,2.88539737,2071.3,2070.7,1.99566843]
[1772080307525,1.20897146,2071.3,2070.7,1.99566843]
[1772080307830,1.67642591,2071.2,2070.7,1.99566843]
[1772080308030,0.002,2071.3,2070.7,1.99566843]
[1772080308228,0.003,2071.7,2071.3,1.70153029]
[1772080308927,0.003,2071.7,2071.4,0.29413814]
[1772080309304,0.003,2071.7,2071.4,1.70153029]
[1772080309723,0.003,2071.7,2071.5,1.70153029]
[1772080310135,0.003,2071.7,2071.3,4.21745958]
[1772080311179,1.67642591,2071.6,2071.1,11.12629848]
[1772080311429,0.002,2071.5,2071.2,1.70153029]
[1772080311604,0.002,2071.5,2070.9,0.001]
[1772080311605,2.8833391,2071.4,2070.9,0.001]
[1772080311920,2.8833391,2071.4,2070.9,11.12729848]
[1772080312235,1.67642591,2071.3,2070.9,11.12729848]
[1772080312732,1.67642591,2071.3,2070.9,10.93395126]
[1772080313032,1.67642591,2071.3,2070.6,0.001]
[1772080313239,1.67642591,2071.3,2070.6,10.93495126]
[1772080313609,1.20702974,2071.2,2070.6,10.93495126]
[1772080313812,1.67642591,2071.1,2070.6,10.93495126]
[1772080314014,1.67642591,2071.1,2070.6,0.001]
[1772080314226,1.67642591,2071.1,2070.4,0.001]
[1772080314426,1.67642591,2071.1,2070.5,10.93395126]
[1772080315612,1.67642591,2071.0,2070.4,0.001]
[1772080315822,1.67642591,2070.8,2070.4,10.93495126]
[1772080316041,1.20720459,2070.9,2070.4,10.93495126]
[1772080316442,1.20720459,2070.9,2070.5,12.64115564]
[1772080317442,2.82633576,2070.9,2070.5,10.93395126]
[1772080317625,1.61913117,2070.8,2070.4,0.001]
[1772080317815,1.20732119,2070.7,2070.4,10.93495126]
[1772080318010,2.82645236,2070.7,2070.4,10.93395126]
[1772080318227,2.82645236,2070.7,2070.1,3.10820438]
[1772080318628,1.20716047,2071.0,2070.2,1.70720438]
[1772080318832,2.8262411,2071.1,2070.2,1.70720438]
[1772080319031,1.61913117,2071.3,2070.5,1.70720438]
[1772080319340,1.61913117,2071.3,2070.6,1.402]
[1772080319916,2.82616091,2071.2,2070.6,1.402]
[1772080320119,1.20702974,2071.2,2070.6,1.402]
[1772080320320,1.61913117,2071.1,2070.6,1.402]
[1772080320717,1.61913117,2071.1,2070.3,1.70720438]
[1772080321026,1.61913117,2071.1,2070.1,3.11120438]
[1772080321544,1.61913117,2071.0,2070.1,1.70820438]
[1772080321740,1.61913117,2071.0,2070.1,2.91587527]
[1772080322143,2.82633576,2070.9,2070.1,1.70820438]
[1772080322545,2.82633576,2070.9,2070.1,2.91587352]
[1772080323044,2.82633576,2070.9,2070.1,1.70820438]
[1772080323222,2.82633576,2070.9,2070.1,2.91587253]
[1772080323548,2.82633576,2070.9,2070.1,1.20866815]
[1772080323751,6.67048259,2071.1,2070.1,1.20866815]
[1772080323752,1.61913117,2071.3,2070.4,1.70720438]
[1772080323918,0.002,2071.5,2070.7,1.70720438]
[1772080324114,0.002,2071.5,2071.1,2.9142924]
[1772080324436,0.002,2071.5,2071.1,4.3192924]
[1772080324850,0.003,2071.7,2071.2,1.46970873]
[1772080325040,0.003,2071.7,2071.3,1.70720438]
[1772080325547,1.61913117,2072.9,2071.9,1.70720438]
[1772080325753,1.61913117,2072.9,2072.0,1.406]
[1772080325948,1.61913117,2072.9,2072.0,0.783]
[1772080326249,1.20609803,2072.8,2072.0,1.98955187]
[1772080326420,4.82375608,2073.1,2072.2,1.70720438]
[1772080326621,1.61913117,2073.0,2072.2,1.70720438]
[1772080327962,1.61913117,2073.0,2072.0,3.69673032]
[1772080328119,1.61913117,2073.0,2072.0,2.49020438]
[1772080328321,1.20603984,2072.9,2072.0,3.69676104]
[1772080328520,1.20603984,2072.9,2072.0,2.49020438]
[1772080328922,1.20603984,2072.9,2072.0,3.69676412]
[1772080329448,6.44329056,2073.0,2072.0,3.69676611]
[1772080329656,1.20603984,2072.9,2072.1,1.70720438]
[1772080330357,1.20592349,2073.1,2072.4,1.70720438]
[1772080330768,1.854,2073.6,2072.4,1.70720438]
[1772080330769,0.1615993,2075.4,2073.1,1.70720438]
[1772080330953,1.20464511,2075.3,2074.3,1.70720438]
[1772080331126,4.98017974,2075.4,2074.2,1.46970873]
[1772080331127,4.98017974,2075.4,2074.5,1.70720438]
[1772080331331,1.20464511,2075.3,2074.5,1.70720438]
[1772080331669,2.82377628,2075.3,2074.1,4.26787872]
[1772080331829,1.61913117,2075.2,2073.7,1.70720438]
[1772080332377,2.82389238,2075.1,2073.8,1.70720438]
[1772080332534,1.61913117,2075.0,2073.8,1.70720438]
[1772080333838,1.61913117,2075.0,2073.9,1.42]
[1772080334157,1.20476121,2075.1,2074.0,1.70720438]
[1772080334368,4.81904486,2075.2,2074.0,1.70720438]
[1772080334752,1.20464511,2075.3,2074.5,1.70720438]
[1772080334955,1.20464511,2075.3,2074.7,1.70720438]
[1772080335273,0.1615993,2075.4,2074.7,1.70720438]
[1772080335453,1.61913117,2077.3,2075.2,1.66249888]
[1772080335630,1.20354323,2077.2,2075.8,1.66249888]
[1772080335831,1.61913117,2077.1,2075.9,0.958]
[1772080336037,1.61913117,2077.1,2075.7,2.05072901]
[1772080336268,1.20354323,2077.2,2075.7,1.424]
[1772080336439,6.53399136,2077.3,2076.0,0.00202561]
[1772080336759,3.77054745,2076.7,2075.5,1.54150544]
[1772080336947,1.71981844,2076.3,2075.0,0.823]
[1772080337350,1.71981844,2076.8,2075.6,2.05072901]
[1772080337572,3.38181844,2077.1,2075.8,0.00402495]
[1772080337866,1.71981844,2077.4,2076.2,2.05072901]
[1772080338064,1.71981844,2077.4,2075.9,0.00402495]
[1772080338267,1.71981844,2077.4,2076.1,0.00402495]
[1772080338464,1.71981844,2077.2,2075.8,2.05072901]
[1772080338694,1.71981844,2077.0,2075.4,4.03728059]
[1772080338877,1.71981844,2076.7,2075.4,0.782]
[1772080339163,1.20348529,2077.3,2075.5,0.00598199]
[1772080339164,1.877,2076.9,2075.5,0.00598199]
[1772080339364,1.71981844,2077.2,2075.7,2.05072901]
[1772080339676,1.71981844,2077.2,2075.6,0.0079591]
[1772080339971,1.71981844,2077.2,2075.7,0.0079591]
[1772080340269,1.20348529,2077.3,2075.7,0.0079591]
[1772080340445,1.20348529,2077.3,2075.9,0.0079591]
[1772080340639,1.71981844,2077.2,2075.5,4.82792262]
[1772080340840,1.71981844,2077.2,2076.1,2.06060836]
[1772080341042,1.71981844,2077.0,2075.4,2.6385659]
[1772080341254,1.71981844,2077.0,2075.4,2.63857221]
[1772080341567,1.71981844,2076.4,2074.9,0.01178561]
[1772080341869,1.71981844,2076.4,2075.0,12.490787]
[1772080342075,1.71981844,2076.4,2074.9,2.64962479]
[1772080342076,1.71981844,2076.4,2075.2,25.574795]
[1772080342239,1.71981844,2076.4,2075.2,0.01178561]
[1772080342444,1.71981844,2076.4,2075.0,18.27621]
[1772080342660,1.71981844,2076.2,2075.2,2.0841]
[1772080342974,1.20406492,2076.3,2075.2,2.0841]
[1772080344266,1.20403452,2076.4,2075.2,2.0841]
[1772080344564,1.71981844,2076.3,2075.2,2.0841]
[1772080345155,2.92376739,2076.5,2075.2,0.01739242]
[1772080346084,1.71981844,2076.4,2075.2,0.01739242]
[1772080346886,1.20394895,2076.5,2075.4,2.07352733]
[1772080347076,1.71981844,2076.8,2075.8,1.20435494]
[1772080347278,2.92359559,2076.8,2075.8,1.20435494]
[1772080347658,3.08563818,2077.1,2075.8,1.22891491]
[1772080347869,1.71981844,2077.1,2076.0,2.05072901]
[1772080348085,1.71981844,2077.1,2075.9,0.02455997]
[1772080348280,2.92328073,2077.4,2076.0,2.07528898]
[1772080348790,2.92328073,2077.4,2076.1,0.02629261]
[1772080349090,2.92328073,2077.4,2076.2,1.20412291]
[1772080349288,1.72281844,2077.8,2076.4,0.02629261]
[1772080349581,0.002,2076.9,2076.5,1.433]
[1772080349961,1.71981844,2077.6,2076.5,1.4590062]
[1772080350195,0.002,2077.1,2076.2,1.20412291]
[1772080350866,0.002,2077.1,2076.3,2.07843979]
[1772080351066,0.002,2077.1,2076.2,1.20412291]
[1772080351283,0.002,2077.1,2076.1,4.81649166]
[1772080351791,0.002,2077.1,2076.2,1.433]
[1772080351965,0.002,2077.1,2076.2,1.46241101]
[1772080352167,0.002,2077.1,2076.3,0.02941101]
[1772080353291,0.002,2077.1,2076.6,2.08343644]
[1772080353460,0.002,2077.1,2076.6,0.03270743]
[1772080353664,1.20290622,2078.3,2077.1,0.03432196]
[1772080353861,4.81459977,2078.4,2077.3,0.03432196]
[1772080354167,1.72081844,2078.2,2076.9,3.51705097]
[1772080354371,1.72081844,2078.2,2077.0,0.03432196]
[1772080354591,0.003,2078.4,2077.5,2.08666946]
[1772080354774,1.20584958,2078.4,2077.6,3.48372901]
[1772080355099,2.92666802,2078.4,2077.6,1.433]
[1772080355260,1.72081844,2078.3,2077.2,1.20353053]
[1772080355577,1.72081844,2078.3,2076.9,1.43]
[1772080355760,1.72081844,2078.3,2077.0,0.03752998]
[1772080355966,1.20584958,2078.4,2077.0,0.03752998]
[1772080356160,1.72081844,2078.3,2077.0,0.03752998]
[1772080356558,1.72081844,2078.3,2076.9,2.63371361]
[1772080356777,1.72081844,2078.1,2076.9,2.63371361]
[1772080357203,1.72081844,2077.9,2076.9,2.6337069]
[1772080357908,1.72081844,2077.9,2076.5,1.20394895]
[1772080358108,1.72081844,2077.8,2076.5,1.20394895]
[1772080358265,1.72081844,2077.7,2076.5,1.20394895]
[1772080358768,1.72081844,2077.7,2076.7,2.05072901]
[1772080358992,1.882,2077.9,2076.7,2.09289273]
[1772080359289,4.80596248,2077.9,2076.9,1.20371707]
[1772080359493,1.72081844,2077.9,2076.9,1.20371707]
[1772080359661,1.72081844,2077.8,2076.9,1.20371707]
[1772080360261,2.92380657,2078.2,2076.9,1.20371707]
[1772080360485,1.72081844,2078.2,2076.9,3.25444608]
[1772080360686,1.72081844,2078.2,2076.9,3.29959683]
[1772080361091,1.72081844,2078.1,2076.9,1.20371707]
[1772080361271,1.72081844,2077.9,2076.8,4.81486831]
[1772080361472,1.72081844,2077.9,2076.8,4.86001906]
[1772080361673,1.72081844,2078.3,2077.0,2.05072901]